fUSD/lending_fUSD_20240406
["ID","MTS","AMOUNT","RATE_DAILY","PERIOD"]
[321712856,1712430631713,-1430.40826955,0.00021248,2]
[321712857,1712430631727,-164.008522,0.0002137,2]
[321712858,1712430631738,-1430.40826955,0.00021443,2]
[321712859,1712430631751,-167.51,0.0002145,2]
[321712860,1712430631763,-150.0,0.000215,2]
[321712861,1712430631774,-150.0,0.000215,2]
[321712862,1712430631786,-499.99,0.00021627,2]
[321712863,1712430631798,-1664.46469188,0.00021652,2]
[321712864,1712430631844,-298.13800288,0.00021652,2]
[321712865,1712430631859,-5185.32687926,0.00021652,2]
[321712866,1712430631870,-1000.0,0.00021653,2]
[321712867,1712430631880,-5290.8169,0.00021653,2]
[321712868,1712430631891,-3714.1249,0.00021653,2]
[321712869,1712430631905,-185.05,0.00021653,2]
[321712870,1712430631917,-150.99,0.00021653,2]
[321712871,1712430631931,-19833.1887674,0.00021653,2]
[321712872,1712430631943,-2500.0,0.00021666,2]
[321712873,1712430631956,-854.34263508,0.00021717,2]
[321712874,1712430631973,-171.03,0.00021742,2]
[321712875,1712430631985,-187.59154681,0.00021742,2]
[321712876,1712430631998,-1000.0,0.00021751,2]
[321712877,1712430632012,-346876.39109392,0.00021752,2]
[321712879,1712430632027,-17499.67735386,0.00021752,2]
[321712882,1712430632046,-3401.39800003,0.00021752,2]
[321712883,1712430632060,-22370.15639317,0.00021752,2]
[321712884,1712430632075,-400.0,0.00021752,2]
[321712885,1712430632106,-904.45153926,0.00021752,2]
[321712886,1712430632122,-3716.19183625,0.00021752,2]
[321712887,1712430632138,-6481.68123966,0.00021752,2]
[321712888,1712430632153,-1694.33,0.00021752,2]
[321712889,1712430632169,-1997.4276,0.00021752,2]
[321712890,1712430632182,-816.16773,0.00021752,2]
[321712891,1712430632198,-1078.46,0.00021752,2]
[321712892,1712430632211,-1259.083791,0.00021752,2]
[321712893,1712430632225,-647.77,0.00021752,2]
[321712926,1712430637821,-2500.0,0.00021653,2]
[321712929,1712430637833,-489.6645247,0.00021751,2]
[321712931,1712430637845,-500.0,0.00021751,2]
[321712933,1712430637856,-500.0,0.00021751,2]
[321712935,1712430637868,-649.69802055,0.00021751,2]
[321712937,1712430637882,-500.0,0.00021751,2]
[321712940,1712430637893,-500.0,0.00021751,2]
[321712942,1712430637904,-500.0,0.00021751,2]
[321712944,1712430637917,-227.75837095,0.00021751,2]
[321712979,1712430639703,-272.24162905,0.00021751,2]
[321712980,1712430639713,-69.63075095,0.00021752,2]
[321712981,1712430639818,-669.38499997,0.00021752,2]
[321712982,1712430639830,-675.18984975,0.00021752,2]
[321712983,1712430639842,-3078.78848779,0.00021752,2]
[321712984,1712430640325,-444.1080005,0.00021752,2]
[321713010,1712430642642,-5536.86888737,0.00021752,2]
[321713011,1712430642699,-7976.59272346,0.00021752,2]
[321713012,1712430642756,-5996.38588241,0.00021752,2]
[321713013,1712430642887,-182119.41359696,0.00021752,2]
[321713014,1712430642897,-39929.6927,0.00021753,2]
[321713015,1712430642906,-100000.0,0.00021753,2]
[321713016,1712430642915,-500.0,0.00021753,2]
[321713017,1712430642924,-61465.56404792,0.00021766,2]
[321713026,1712430645648,-500.0,0.00021652,2]
[321713027,1712430645659,-3351.65153451,0.00021766,2]
[321713028,1712430645705,-9540.06150469,0.00021766,2]
[321713029,1712430645874,-264.66927758,0.00021766,2]
[321713032,1712430666790,727.6017,0.00020925,2]
[321713038,1712430809144,410.3,0.00020979,2]
[321713040,1712430943775,10869.05722226,0.00020916,2]
[321713041,1712430943803,13030.94277774,0.00020916,2]
[321713043,1712430959455,200.0,0.00020901,2]
[321713045,1712431023658,815.78,0.00018969,2]
[321713047,1712431086612,1450.0,0.00021,3]
[321713048,1712431146464,167.0,0.00020857,2]
[321713049,1712431149222,168.18,0.00020857,2]
[321713050,1712431205869,2442.35,0.00020872,2]
[321713051,1712431211559,-150.5,0.0002296,15]
[321713052,1712431211587,-109.5,0.0002296,15]
[321713053,1712431234821,200.0,0.00020854,2]
[321713054,1712431250882,250.0,0.00020836,2]
[321713056,1712431368592,403.43,0.00020844,2]
[321713057,1712431426701,7680.56,0.00020867,2]
[321713058,1712431498931,774.99,0.00018939,2]
[321713059,1712431616229,182.18,0.00020831,2]
[321713060,1712431621039,168.18,0.00020831,2]
[321713061,1712431673476,1627.9,0.0002083,2]
[321713062,1712431750004,250.0,0.00020822,2]
[321713063,1712431813705,677.25,0.00020879,2]
[321713070,1712431831952,-425.496,0.00021066,2]
[321713071,1712431831966,-26.02356905,0.00021066,2]
[321713072,1712431831975,-405.16156063,0.00021066,2]
[321713073,1712431831991,-639.59877857,0.00021066,2]
[321713074,1712431832000,-922.56697133,0.00021067,2]
[321713075,1712431832012,-124.257845,0.00021067,2]
[321713076,1712431832023,-162.05266801,0.00021068,2]
[321713077,1712431832033,-774.99,0.00021203,2]
[321713078,1712431832043,-1430.40826955,0.00021532,2]
[321713079,1712431832053,-150.0,0.00021616,2]
[321713080,1712431832064,-1339.77810377,0.00021617,2]
[321713081,1712431832081,-250.0,0.00021617,2]
[321713082,1712431832096,-383.77072535,0.00021617,2]
[321713083,1712431832124,-337.26,0.00021617,2]
[321713086,1712431832185,-189.19117088,0.00021617,2]
[321713087,1712431832194,-1504.71965984,0.00021617,2]
[321713088,1712431832210,-665.08469825,0.00021617,2]
[321713101,1712431837850,-379.88735711,0.00021617,2]
[321713105,1712431838014,-1359.11685064,0.00021617,2]
[321713138,1712431839897,-696.2,0.00021617,2]
[321713139,1712431840007,-1828.12805076,0.00021617,2]
[321713140,1712431840016,-337.26,0.00021617,2]
[321713141,1712431840026,-500.0,0.00021652,2]
[321713142,1712431840035,-1157.13692217,0.00021665,2]
[321713143,1712431840046,-370.12043496,0.00021665,2]
[321713144,1712431840058,-543.10654277,0.00021665,2]
[321713145,1712431840191,-15779.50599076,0.00021665,2]
[321713146,1712431840200,-901.89000143,0.000217,2]
[321713147,1712431840209,-171.04,0.00021707,2]
[321713148,1712431840218,-405.52200228,0.00021716,2]
[321713149,1712431840227,-63433.03861788,0.00021717,2]
[321713150,1712431840240,-685.9095996,0.00021717,2]
[321713151,1712431840251,-1005.91500002,0.00021717,2]
[321713152,1712431840263,-909.92980958,0.00021717,2]
[321713153,1712431840293,-2.46800003,0.00021717,2]
[321713154,1712431840304,-35438.95328365,0.00021717,2]
[321713155,1712431842923,-1962.2339759,0.00021717,2]
[321713156,1712431843231,-927.06125974,0.00021717,2]
[321713157,1712431843253,-6730.18507482,0.00021717,2]
[321713193,1712431846019,-56125.33109423,0.00021717,2]
[321713211,1712431846180,-16899.99999998,0.00021717,2]
[321713218,1712431848978,155.0,0.00020879,2]
[321713219,1712431855995,295.41221015,0.00020879,2]
[321713220,1712431859400,863.44420511,0.00020879,2]
[321713222,1712431957120,8965.02,0.00020987,2]
[321713223,1712432095614,184.12,0.00016782,2]
[321713224,1712432122352,715.5,0.00019018,2]
[321713227,1712432242570,1084.93,0.00020877,2]
[321713228,1712432312957,3308.0,0.00020968,2]
[321713229,1712432338924,250.0,0.00020789,2]
[321713230,1712432366790,775.52,0.00020789,2]
[321713231,1712432422847,1000.0,0.00020775,2]
[321713232,1712432670449,679.72,0.00018857,2]
[321713233,1712432699293,167.0,0.00020768,2]
[321713236,1712432880578,722.95,0.00020741,2]
[321713237,1712432904595,200.0,0.00020723,2]
[321713238,1712432905598,1450.0,0.00021,3]
[321713239,1712432939716,250.0,0.00020743,2]
[321713241,1712433032026,-312.06068321,0.00021121,2]
[321713242,1712433032041,-367.65931679,0.00021121,2]
[321713243,1712433032052,-92.90007816,0.00021242,2]
[321713244,1712433032236,-3898.09992184,0.00021242,2]
[321713245,1712433032246,-1457.79638673,0.00021258,2]
[321713246,1712433032255,-168.43,0.00021398,2]
[321713247,1712433032264,-1457.79638673,0.00021421,2]
[321713248,1712433032274,-150.0,0.00021422,2]
[321713249,1712433032283,-9611.13987926,0.00021423,2]
[321713250,1712433032292,-24331.64137016,0.00021466,2]
[321713251,1712433032302,-1022.35869364,0.00021466,2]
[321713252,1712433032311,-2500.0,0.00021466,2]
[321713253,1712433032320,-1000.0,0.00021466,2]
[321713254,1712433032329,-200.0,0.00021499,2]
[321713255,1712433032338,-500.0,0.000215,2]
[321713256,1712433032347,-22411.12677243,0.000215,2]
[321713350,1712433038492,-96276.62346744,0.000215,2]
[321713352,1712433038501,-319.18407347,0.00021516,2]
[321713354,1712433038510,-451.51956905,0.00021523,2]
[321713355,1712433038519,-171.04,0.00021556,2]
[321713356,1712433038529,-327.01032315,0.00021565,2]
[321713357,1712433038538,-23181.0119,0.00021566,2]
[321713358,1712433038547,-245000.0,0.00021566,2]
[321713359,1712433038556,-3446.72333954,0.00021616,2]
[321713360,1712433038565,-10919.3133,0.00021617,2]
[321713361,1712433038575,-1000.0,0.00021617,2]
[321713362,1712433038584,-53296.01227203,0.00021665,2]
[321713363,1712433038594,-39912.4463,0.00021666,2]
[321713364,1712433038607,-100000.0,0.00021666,2]
[321713365,1712433038616,-500.0,0.000217,2]
[321713366,1712433038625,-323.89,0.000217,2]
[321713367,1712433038634,-300.0,0.000217,2]
[321713368,1712433038643,-300.0,0.000217,2]
[321713369,1712433038652,-300.0,0.000217,2]
[321713370,1712433038661,-7500.0,0.00021717,2]
[321713371,1712433038670,-188.67159562,0.00021744,2]
[321713372,1712433038680,-37869.86081277,0.00021766,2]
[321713373,1712433038689,-319.18407344,0.00021798,2]
[321713374,1712433038698,-9611.13987917,0.00021809,2]
[321713375,1712433038707,-24331.64137011,0.00021848,2]
[321713376,1712433038717,-407.1301357,0.00021851,2]
[321713377,1712433038727,-407.93141682,0.00021851,2]
[321713378,1712433038737,-180.56821029,0.00021851,2]
[321713379,1712433038746,-1221.36561654,0.00021851,2]
[321713380,1712433038755,-201.21056793,0.00021851,2]
[321713381,1712433038764,-594.47312192,0.00021851,2]
[321713382,1712433038774,-640.08300789,0.00021851,2]
[321713383,1712433038783,-778.46192266,0.00021851,2]
[321713384,1712433038793,-2018.29327895,0.00021851,2]
[321713385,1712433038802,-155.87962039,0.00021851,2]
[321713386,1712433038811,-2679.49784196,0.00021852,2]
[321713387,1712433038820,-249.99569397,0.00021852,2]
[321713388,1712433038830,-5066.97272315,0.00021852,2]
[321713389,1712433038839,-25000.0,0.00021853,2]
[321713390,1712433038847,-700.43711223,0.000219,2]
[321713391,1712433038857,-700.43711223,0.000219,2]
[321713392,1712433038866,-700.43711223,0.000219,2]
[321713393,1712433038875,-700.43711223,0.000219,2]
[321713394,1712433038884,-700.43711223,0.000219,2]
[321713395,1712433038893,-700.43711223,0.000219,2]
[321713396,1712433038902,-700.43711223,0.000219,2]
[321713397,1712433038911,-700.43711223,0.000219,2]
[321713398,1712433038920,-700.43711223,0.000219,2]
[321713399,1712433038929,-700.43711223,0.000219,2]
[321713400,1712433038938,-700.43711223,0.000219,2]
[321713401,1712433038948,-700.43711223,0.000219,2]
[321713402,1712433038957,-700.43711223,0.000219,2]
[321713403,1712433038966,-700.43711223,0.000219,2]
[321713404,1712433038975,-700.43711223,0.000219,2]
[321713405,1712433038984,-700.43711223,0.000219,2]
[321713406,1712433038993,-700.43711223,0.000219,2]
[321713407,1712433039002,-700.43711223,0.000219,2]
[321713408,1712433039011,-700.43711223,0.000219,2]
[321713409,1712433039020,-700.43711223,0.000219,2]
[321713410,1712433039030,-700.43711223,0.000219,2]
[321713411,1712433039039,-700.43711223,0.000219,2]
[321713412,1712433039049,-700.43711223,0.000219,2]
[321713413,1712433039058,-700.43711223,0.000219,2]
[321713414,1712433039067,-700.43711223,0.000219,2]
[321713415,1712433039076,-700.43711223,0.000219,2]
[321713416,1712433039085,-700.43711223,0.000219,2]
[321713417,1712433039094,-700.43711223,0.000219,2]
[321713418,1712433039105,-700.43711223,0.000219,2]
[321713419,1712433039114,-700.43711223,0.000219,2]
[321713420,1712433039317,-700.43711223,0.000219,2]
[321713421,1712433039327,-700.43711223,0.000219,2]
[321713422,1712433039336,-700.43711223,0.000219,2]
[321713423,1712433039345,-700.43711223,0.000219,2]
[321713424,1712433039353,-700.43711223,0.000219,2]
[321713425,1712433039362,-700.43711223,0.000219,2]
[321713426,1712433039371,-700.43711223,0.000219,2]
[321713427,1712433039381,-700.43711223,0.000219,2]
[321713428,1712433039390,-700.43711223,0.000219,2]
[321713429,1712433039403,-700.43711223,0.000219,2]
[321713430,1712433039413,-700.43711223,0.000219,2]
[321713431,1712433039422,-700.43711223,0.000219,2]
[321713432,1712433039431,-700.43711223,0.000219,2]
[321713433,1712433039441,-700.43711223,0.000219,2]
[321713434,1712433039451,-700.43711223,0.000219,2]
[321713435,1712433039460,-700.43711223,0.000219,2]
[321713436,1712433039470,-700.43711223,0.000219,2]
[321713437,1712433039480,-700.43711223,0.000219,2]
[321713438,1712433039490,-700.43711223,0.000219,2]
[321713439,1712433039499,-700.43711223,0.000219,2]
[321713440,1712433039508,-700.43711223,0.000219,2]
[321713441,1712433039518,-700.43711223,0.000219,2]
[321713442,1712433039530,-700.43711223,0.000219,2]
[321713443,1712433039540,-700.43711223,0.000219,2]
[321713444,1712433039550,-700.43711223,0.000219,2]
[321713445,1712433039559,-700.43711223,0.000219,2]
[321713446,1712433039568,-700.43711223,0.000219,2]
[321713447,1712433039577,-700.43711223,0.000219,2]
[321713448,1712433039586,-700.43711223,0.000219,2]
[321713449,1712433039595,-700.43711223,0.000219,2]
[321713450,1712433039605,-700.43711223,0.000219,2]
[321713451,1712433039614,-700.43711223,0.000219,2]
[321713452,1712433039623,-700.43711223,0.000219,2]
[321713453,1712433039632,-700.43711223,0.000219,2]
[321713454,1712433039641,-700.43711223,0.000219,2]
[321713455,1712433039651,-700.43711223,0.000219,2]
[321713456,1712433039660,-700.43711223,0.000219,2]
[321713457,1712433039669,-700.43711223,0.000219,2]
[321713458,1712433039678,-700.43711223,0.000219,2]
[321713459,1712433039688,-700.43711223,0.000219,2]
[321713460,1712433039697,-700.43711223,0.000219,2]
[321713461,1712433039706,-700.43711223,0.000219,2]
[321713462,1712433039715,-700.43711223,0.000219,2]
[321713463,1712433039724,-700.43711223,0.000219,2]
[321713464,1712433039733,-700.43711223,0.000219,2]
[321713465,1712433039742,-700.43711223,0.000219,2]
[321713466,1712433039752,-700.43711223,0.000219,2]
[321713467,1712433039761,-700.43711223,0.000219,2]
[321713468,1712433039770,-700.43711223,0.000219,2]
[321713469,1712433039782,-700.43711223,0.000219,2]
[321713470,1712433039791,-700.43711223,0.000219,2]
[321713471,1712433039801,-700.43711223,0.000219,2]
[321713472,1712433039811,-700.43711223,0.000219,2]
[321713473,1712433039820,-700.43711223,0.000219,2]
[321713474,1712433039830,-700.43711223,0.000219,2]
[321713475,1712433039839,-700.43711223,0.000219,2]
[321713476,1712433039848,-700.43711223,0.000219,2]
[321713477,1712433039858,-700.43711223,0.000219,2]
[321713478,1712433039867,-700.43711223,0.000219,2]
[321713479,1712433039876,-700.43711223,0.000219,2]
[321713480,1712433039885,-700.43711223,0.000219,2]
[321713481,1712433039894,-700.43711223,0.000219,2]
[321713483,1712433039903,-700.43711223,0.000219,2]
[321713485,1712433039912,-700.43711223,0.000219,2]
[321713487,1712433039921,-700.43711223,0.000219,2]
[321713489,1712433039930,-700.43711223,0.000219,2]
[321713491,1712433039940,-700.43711223,0.000219,2]
[321713493,1712433039949,-700.43711223,0.000219,2]
[321713495,1712433039958,-700.43711223,0.000219,2]
[321713497,1712433039967,-700.43711223,0.000219,2]
[321713499,1712433039976,-364.86024513,0.00021917,2]
[321713500,1712433039985,-11415.74160047,0.00021917,2]
[321713502,1712433039995,-1123.8434254,0.00021917,2]
[321713504,1712433040004,-1038.04438346,0.00021917,2]
[321713506,1712433040013,-500.0,0.00021917,2]
[321713509,1712433040023,-500.0,0.00021917,2]
[321713510,1712433040032,-500.0,0.00021917,2]
[321713511,1712433040042,-594.89264477,0.00021917,2]
[321713512,1712433040051,-500.0,0.00021917,2]
[321713513,1712433040060,-510.09696247,0.00021917,2]
[321713514,1712433040069,-503.43949192,0.00021917,2]
[321713515,1712433040078,-500.0,0.00021917,2]
[321713516,1712433040087,-500.0,0.00021917,2]
[321713518,1712433040096,-500.0,0.00021917,2]
[321713520,1712433040106,-500.0,0.00021917,2]
[321713522,1712433040114,-560.76,0.00021917,2]
[321713524,1712433040123,-500.0,0.00021917,2]
[321713526,1712433040132,-500.0,0.00021917,2]
[321713528,1712433040141,-219.65,0.00021917,2]
[321713530,1712433040150,-395.53,0.00021917,2]
[321713532,1712433040159,-503.97305339,0.00021917,2]
[321713534,1712433040168,-500.0,0.00021917,2]
[321713536,1712433040177,-500.0,0.00021917,2]
[321713538,1712433040186,-500.0,0.00021917,2]
[321713540,1712433040195,-500.0,0.00021917,2]
[321713542,1712433040205,-500.0,0.00021917,2]
[321713544,1712433040214,-500.0,0.00021917,2]
[321713545,1712433040223,-500.0,0.00021917,2]
[321713547,1712433040232,-372.88,0.00021917,2]
[321713549,1712433040241,-500.0,0.00021917,2]
[321713551,1712433040250,-500.0,0.00021917,2]
[321713553,1712433040259,-500.0,0.00021917,2]
[321713555,1712433040269,-500.0,0.00021917,2]
[321713557,1712433040279,-500.0,0.00021917,2]
[321713559,1712433040288,-500.0,0.00021917,2]
[321713561,1712433040299,-500.0,0.00021917,2]
[321713563,1712433040308,-562.25,0.00021917,2]
[321713565,1712433040317,-500.0,0.00021917,2]
[321713567,1712433040327,-500.0,0.00021917,2]
[321713569,1712433040336,-500.0,0.00021917,2]
[321713571,1712433040345,-500.0,0.00021917,2]
[321713573,1712433040353,-500.0,0.00021917,2]
[321713575,1712433040362,-500.0,0.00021917,2]
[321713577,1712433040371,-500.0,0.00021917,2]
[321713579,1712433040380,-4192.48,0.00021917,2]
[321713581,1712433040389,-4192.48,0.00021917,2]
[321713583,1712433040402,-4192.48,0.00021917,2]
[321713585,1712433040411,-500.0,0.00021917,2]
[321713587,1712433040420,-500.0,0.00021917,2]
[321713589,1712433040430,-500.0,0.00021917,2]
[321713591,1712433040441,-456.12,0.00021917,2]
[321713593,1712433040450,-500.0,0.00021917,2]
[321713595,1712433040459,-500.0,0.00021917,2]
[321713597,1712433040469,-212.57,0.00021917,2]
[321713599,1712433040479,-500.0,0.00021917,2]
[321713600,1712433040488,-500.0,0.00021917,2]
[321713601,1712433040497,-500.0,0.00021917,2]
[321713602,1712433040506,-500.0,0.00021917,2]
[321713603,1712433040515,-500.0,0.00021917,2]
[321713604,1712433040524,-500.0,0.00021917,2]
[321713605,1712433040533,-500.0,0.00021917,2]
[321713606,1712433040542,-500.0,0.00021917,2]
[321713607,1712433040551,-500.0,0.00021917,2]
[321713608,1712433040560,-340.84,0.00021917,2]
[321713609,1712433040570,-500.0,0.00021917,2]
[321713610,1712433040579,-500.0,0.00021917,2]
[321713611,1712433040588,-339.28,0.00021917,2]
[321713612,1712433040597,-500.0,0.00021917,2]
[321713613,1712433040606,-203.46,0.00021917,2]
[321713614,1712433040614,-500.0,0.00021917,2]
[321713615,1712433040624,-500.0,0.00021917,2]
[321713616,1712433040632,-500.0,0.00021917,2]
[321713617,1712433040641,-500.0,0.00021917,2]
[321713618,1712433040651,-482.28,0.00021917,2]
[321713619,1712433040660,-500.0,0.00021917,2]
[321713620,1712433040669,-500.0,0.00021917,2]
[321713621,1712433040678,-500.0,0.00021917,2]
[321713622,1712433040687,-500.0,0.00021917,2]
[321713623,1712433040696,-500.0,0.00021917,2]
[321713624,1712433040706,-500.0,0.00021917,2]
[321713625,1712433040715,-500.0,0.00021917,2]
[321713626,1712433040724,-500.0,0.00021917,2]
[321713627,1712433040733,-500.0,0.00021917,2]
[321713628,1712433040743,-500.0,0.00021917,2]
[321713629,1712433040753,-500.0,0.00021917,2]
[321713630,1712433040761,-500.0,0.00021917,2]
[321713631,1712433040770,-500.0,0.00021917,2]
[321713632,1712433040779,-250.0,0.00021918,2]
[321713633,1712433040788,-500.0,0.00021918,7]
[321713634,1712433040797,-1022.3586936,0.00021954,2]
[321713635,1712433040806,-500.0,0.0002197,2]
[321713636,1712433040815,-5587.51782305,0.00022,2]
[321713637,1712433040824,-18363.76698253,0.00022,2]
[321713638,1712433040833,-371.93339651,0.00022,2]
[321713639,1712433040843,-4105.0,0.00022,2]
[321713640,1712433040852,-783.12017279,0.00022,2]
[321713641,1712433040861,-1457.79638673,0.00022053,2]
[321713642,1712433040870,-319.18407344,0.0002208,2]
[321713643,1712433040879,-338.0,0.000221,2]
[321713644,1712433040888,-1477.0,0.000221,2]
[321713645,1712433040897,-9611.13987917,0.00022196,2]
[321713646,1712433040906,-24331.64137011,0.00022229,2]
[321713647,1712433040916,-319.18407344,0.00022362,2]
[321713648,1712433040924,-500.0,0.00022383,2]
[321713649,1712433040933,-500.0,0.00022383,2]
[321713650,1712433040942,-1457.79638676,0.00022437,2]
[321713651,1712433040951,-1022.3586936,0.00022441,2]
[321713652,1712433040960,-519.8,0.00022548,2]
[321713653,1712433040969,-417.37,0.00022548,2]
[321713654,1712433040978,-150.0,0.00022548,2]
[321713655,1712433040987,-150.0,0.00022548,2]
[321713656,1712433040996,-318.47,0.00022548,2]
[321713657,1712433041005,-348.87,0.00022548,2]
[321713658,1712433041014,-150.0,0.00022548,2]
[321713659,1712433041023,-519.8,0.00022548,2]
[321713660,1712433041034,-417.37,0.00022548,2]
[321713661,1712433041043,-150.0,0.00022548,2]
[321713662,1712433041052,-348.87,0.00022548,2]
[321713663,1712433041061,-150.0,0.00022548,2]
[321713664,1712433041070,-519.8,0.00022548,2]
[321713665,1712433041079,-150.0,0.00022548,2]
[321713666,1712433041088,-417.37,0.00022548,2]
[321713667,1712433041097,-348.87,0.00022548,2]
[321713668,1712433041106,-150.0,0.00022548,2]
[321713669,1712433041115,-519.8,0.00022548,2]
[321713670,1712433041123,-150.0,0.00022548,2]
[321713671,1712433041132,-348.87,0.00022548,2]
[321713672,1712433041141,-417.37,0.00022548,2]
[321713673,1712433041150,-150.0,0.00022548,2]
[321713674,1712433041160,-519.8,0.00022548,2]
[321713675,1712433041169,-172.08,0.00022548,2]
[321713676,1712433041178,-150.0,0.00022548,2]
[321713677,1712433041187,-519.8,0.00022548,2]
[321713678,1712433041197,-348.87,0.00022548,2]
[321713679,1712433041206,-348.87,0.00022548,2]
[321713680,1712433041215,-519.8,0.00022548,2]
[321713681,1712433041224,-150.0,0.00022548,2]
[321713682,1712433041233,-150.0,0.00022548,2]
[321713683,1712433041242,-519.8,0.00022548,2]
[321713684,1712433041251,-346.87,0.00022548,2]
[321713685,1712433041260,-519.8,0.00022548,2]
[321713686,1712433041270,-519.8,0.00022548,2]
[321713687,1712433041280,-519.8,0.00022548,2]
[321713688,1712433041289,-519.8,0.00022548,2]
[321713689,1712433041298,-519.8,0.00022548,2]
[321713690,1712433041308,-169.81,0.00022548,2]
[321713691,1712433041317,-1258.0,0.00022556,2]
[321713692,1712433041325,-539.0,0.00022556,2]
[321713693,1712433041334,-1066.863,0.00022556,2]
[321713694,1712433041343,-607.0,0.00022556,2]
[321713695,1712433041353,-439.387,0.00022556,2]
[321713696,1712433041362,-449.865,0.00022556,2]
[321713697,1712433041371,-214.0,0.00022556,2]
[321713698,1712433041380,-354.0,0.00022556,2]
[321713699,1712433041389,-176.36351109,0.0002258,2]
[321713700,1712433041401,-9611.13987917,0.00022582,2]
[321713701,1712433041411,-500.0,0.0002259,2]
[321713702,1712433041421,-500.0,0.0002261,2]
[321713703,1712433041430,-24331.64137011,0.00022611,2]
[321713704,1712433041440,-500.0,0.00022637,2]
[321713705,1712433041450,-525041.38482164,0.00022638,2]
[321713706,1712433041474,-3430.2268,0.00022638,2]
[321713707,1712433041486,-20050.72586938,0.00022638,2]
[321713708,1712433041497,-38816.59706,0.00022638,2]
[321713709,1712433041509,-41655.862484,0.00022638,2]
[321713710,1712433041520,-40188.70718728,0.00022638,2]
[321713711,1712433041536,-3162.00895129,0.00022638,2]
[321713712,1712433041665,-465.38794503,0.00022638,2]
[321713713,1712433041686,-17231.16016003,0.00022638,2]
[321713714,1712433041697,-1675.42499973,0.00022638,2]
[321713715,1712433042733,-2646.60596042,0.00022638,2]
[321713716,1712433042840,-3297.636,0.00022638,2]
[321713717,1712433042852,-1538.7074705,0.00022638,2]
[321713718,1712433043057,-4509.70084505,0.00022638,2]
[321713720,1712433043272,-68673.18584945,0.00022638,2]
[321713721,1712433043283,-587.29827732,0.00022638,2]
[321713722,1712433043292,-2348.97634667,0.00022638,2]
[321713723,1712433043301,-155.0,0.00022638,2]
[321713724,1712433043310,-30452.36373422,0.00022638,2]
[321713725,1712433043319,-154.07778751,0.0002264,2]
[321713726,1712433043329,-319.18407344,0.00022644,2]
[321713727,1712433043338,-150.0,0.00022695,2]
[321713728,1712433043348,-150.0,0.00022696,2]
[321713729,1712433043358,-150.0,0.00022698,2]
[321713730,1712433043367,-500.0,0.00022699,2]
[321713731,1712433043376,-217.63311512,0.00022699,2]
[321713732,1712433043385,-150.0,0.00022702,2]
[321713733,1712433043396,-150.0,0.00022702,2]
[321713734,1712433043407,-150.0,0.00022708,2]
[321713735,1712433043417,-150.0,0.00022708,2]
[321713736,1712433043426,-150.0,0.0002271,2]
[321713737,1712433043435,-150.0,0.00022712,2]
[321713738,1712433043445,-150.0,0.00022719,2]
[321713739,1712433043455,-150.0,0.0002272,2]
[321713740,1712433043464,-150.0,0.00022721,2]
[321713741,1712433043474,-150.0,0.00022724,2]
[321713742,1712433043483,-150.0,0.00022724,2]
[321713743,1712433043492,-150.0,0.00022725,2]
[321713744,1712433043501,-150.0,0.00022729,2]
[321713745,1712433043510,-150.0,0.00022736,2]
[321713746,1712433043520,-4192.48,0.00022739,2]
[321713747,1712433043530,-500.0,0.00022739,2]
[321713748,1712433043539,-500.0,0.00022739,2]
[321713749,1712433043548,-500.0,0.00022739,2]